Cogmind - Beta 15 @@@ ROGUE MODE // 2025.10.10 @ 00:01:56 Player: GolbalwarmingLord Result: Destroyed by as-81695 with Assembled Maul Performance ------------- Evolutions (0) 0 Regions Visited (2) 400 Robots Destroyed (31) 155 Value Destroyed (400) 400 Prototype IDs (2) 40 Alien Tech Used (0) 0 Bonus (0) 0 TOTAL SCORE: 995 Bonus ------- None Cogmind --------- Core Integrity 0/250 Matter 105/300 Energy 100/100 System Corruption 5% Temperature Cool (0) Movement Core (750) Ox14 Location -10/Mines Parts ------- > --- POWER (1) -------- (None) > --- PROPULSION (2) --- (None) > --- UTILITY (2) ------ High-capacity Storage Unit > --- WEAPON (2) ------- Autogun > --- INVENTORY (20) --- Ion Engine Light Ion Engine Heat Sink Small Storage Unit Hacking Suite Autogun Peak State ------------ > --- POWER ------------ Improved Ion Engine > --- PROPULSION ------- Wheel Wheel > --- UTILITY ---------- High-capacity Storage Unit Improved Terrain Scanner > --- WEAPON ----------- Autogun Autogun > --- INVENTORY -------- Ion Engine Light Ion Engine Improved Ion Engine Flight Unit Flight Unit Flight Unit Heat Sink Small Storage Unit Grenade Launcher [Rating: 13] Favorites ----------- Power Improved Ion Engine Engine Improved Ion Engine Propulsion Wheel Treads Light Treads Wheel Wheel Flight Unit Flight Unit Utility Improved Terrain Scanner Device Improved Terrain Scanner Storage High-capacity Storage Unit Weapon Autogun Energy Gun Small Laser Ballistic Gun Autogun Launcher Grenade Launcher Build | -11 -10 -10 ------- Run | Yrd Mat Min Slots Evolved . | . . . Power . | . . . Propulsion . | . . . Utility . | . . . Weapon . | . . . Parts Attached 22 | 10 11 1 Power 3 | 1 2 . Engine 3 | 1 2 . Core . | . . . Reactor . | . . . Propulsion 8 | 4 4 . Treads 2 | 2 . . Leg . | . . . Wheel 4 | 2 2 . Hover . | . . . Flight 2 | . 2 . Utility 4 | 3 1 . Device 2 | 2 . . Storage 2 | 1 1 . Processor . | . . . Hackware . | . . . Protection . | . . . Artifact . | . . . Weapon 7 | 2 4 1 Energy Gun 1 | . 1 . Energy Cannon . | . . . Ballistic Gun 4 | 2 2 . Ballistic Cannon . | . . . Launcher 2 | . 1 1 Special Weapon . | . . . Impact Weapon . | . . . Slashing Weapon . | . . . Piercing Weapon . | . . . Special Melee Weapon . | . . . Unidentified Prototypes . | . . . Parts Lost 9 | . 5 4 Power . | . . . Propulsion 4 | . 2 2 Utility 1 | . . 1 Weapon 4 | . 3 1 Highest Loss Streak 4 | . 2 4 To Critical Strikes . | . . . Average Backups 5 | 2 6 6 Power 1 | . 2 2 Propulsion 1 | 1 1 . Utility 1 | . 1 3 Weapon . | . 1 1 Tool/Special . | . . . Unused Backups 4 | . 1 3 Power 1 | . . 1 Propulsion 1 | . 1 . Utility 2 | . . 2 Weapon . | . . . Tool/Special . | . . . Average Slot Usage (%) 95 | . 96 80 Engine 13 | . 13 14 Wheel 26 | . 26 18 Device 13 | . 13 9 Storage 14 | . 14 14 Energy Gun 1 | . 1 . Ballistic Gun 23 | . 23 18 Peak Build Rating 13 | 9 13 12 Average Rating 9 | 6 10 7 On Entrance 7 | . 9 12 Naked Turns . | . . . Heaviest Build 54 | 15 54 54 Greatest Support 40 | 40 32 20 Greatest Overweight (x) 4 | . 4 2 Average Overweight (x) 1 | . 1 2 Largest Inventory Capacity 20 | 8 20 20 Average Capacity 15 | 7 16 20 Most Carried 10 | 4 10 6 Average Carried 5 | 2 6 6 Final Capacity 20 | 8 20 20 Final Carried 6 | 3 6 6 Class Distribution -------------------- 93% | Mutant 6% | Scavenger-Mutant Dominant Class ---------------- Mutant | -10/Materials Mutant | -10/Mines Resources | -11 -10 -10 ----------- Run | Yrd Mat Min Matter Collected 710 | 396 314 . Remotely . | . . . Salvage Created 747 | 197 496 54 Parts 64 | 18 46 . Haulers Intercepted 1 | . 1 . Recyclers Shooed . | . . . Parts Field Recycled . | . . . Retrieved Matter . | . . . Parts Self-Destructed . | . . . Prevented . | . . . Kills | -11 -10 -10 ------- Run | Yrd Mat Min Combat Hostiles Destroyed 35 | . 18 17 Guns 16 | . 14 2 AOE 19 | . 4 15 Classes Destroyed 9 | 3 5 1 Worker 4 | 2 2 . Builder 2 | . 2 . Tunneler 4 | 4 . . Hauler 1 | . 1 . Recycler 1 | 1 . . Operator 1 | . 1 . Swarmer 12 | . 12 . Grunt 6 | . 6 . Assembled 17 | . . 17 Best Kill Streak 17 | 4 7 17 Combat Bots Only 17 | . 7 17 Max Kills in Single Turn 6 | 1 5 6 Gunslinging . | . . . Exploded 5 | . 3 5 Melee . | . . . Uniques/NPCs Destroyed . | . . . Combat | -11 -10 -10 -------- Run | Yrd Mat Min Hostile Shots Fired 139 | . 101 38 Missed 44 | . 29 15 Hits 95 | . 72 23 Melee 5 | . . 5 Projectile 90 | . 72 18 Critical Strikes 1 | . 1 . Damage Taken 1090 | . 674 416 Core 268 | . 166 102 Absorbed by Shields . | . . . Regen/Repaired (Parts) 20 | . 20 . Core Remaining (%) 100 | 100 . . Volleys Fired 77 | 16 53 8 Largest 2 | 2 2 2 Hottest 60 | 40 60 53 Shots Fired 129 | 32 85 12 Gun 121 | 32 81 8 Cannon . | . . . Launcher 8 | . 4 4 Special . | . . . Kinetic 112 | 32 72 8 Thermal 9 | . 9 . Explosive 8 | . 4 4 Electromagnetic . | . . . Robot Hit Streak 17 | 4 17 5 Robot Miss Streak 6 | 4 6 3 Penetration Max . | . . . Secondary Targets . | . . . Shots Hit Robots 68 | 17 49 2 Core Hits 83 | 7 31 45 Critical Kills 1 | . 1 . Critical Parts Destroyed . | . . . Critical Strikes 1 | . 1 . Destroy 1 | . 1 . Melee Attacks . | . . . Impact . | . . . Slashing . | . . . Piercing . | . . . Sneak Attacks . | . . . Combat Hostiles . | . . . Follow-up Attacks . | . . . Damage Inflicted 2235 | 222 1066 947 Guns 906 | 222 634 50 Cannons . | . . . Explosions 1305 | . 408 897 Melee . | . . . Ramming 24 | . 24 . Kinetic 859 | 222 587 50 Thermal 47 | . 47 . Explosive 1305 | . 408 897 Electromagnetic . | . . . Impact . | . . . Slashing . | . . . Piercing . | . . . Highest Corruption 5 | . . 5 Average Corruption 5 | . . 5 Corruption Purged . | . . . Corruption Blocked . | . . . Effects 1 | . . 1 Parts Rejected 1 | . . 1 Overload Shots . | . . . Overflow Damage 8 | . 6 2 Projectiles . | . . . Explosions 8 | . 6 2 Melee . | . . . Knockbacks . | . . . Impact . | . . . Kinetic . | . . . Secondary . | . . . Self-Inflicted Damage 49 | . 11 38 Shots 1 | . . 1 Rammed 4 | . 4 . Targets Rammed 4 | . 4 . Kicked . | . . . Crushed . | . . . Highest Temperature 34 | . 30 34 Average Temperature 14 | . 11 20 Received Heat Transfer 214 | . 174 40 Siege Activations . | . . . Martial Activations . | . . . Shielding Activations . | . . . Robots Disrupted . | . . . Combat Hostiles . | . . . Robots Corrupted . | . . . Combat Hostiles . | . . . Parts Fried . | . . . Impact Corruptions . | . . . Robots Melted . | . . . Combat Hostiles . | . . . Parts Melted . | . . . Heat Transferred 100 | . 100 . Parts Sabotaged . | . . . Parts Stolen . | . . . Parts Stripped . | . . . Power Chain Reactions . | . . . Alert | -11 -10 -10 ------- Run | Yrd Mat Min Maximum Alert Level 1 | . 1 . Low Security (%) 99 | 100 99 100 Level 1 . | . . . Level 2 . | . . . Level 3 . | . . . Level 4 . | . . . Level 5 . | . . . High Security . | . . . Max Security . | . . . Peak Influence 201 | 15 201 9 Initial 3 | . 3 . Average 51 | 2 59 2 Influence Increases 587 | 35 529 23 Destroy 0b10 Robot/C 360 | . 360 . Destroy 0b10 Robot/NC 65 | 35 30 . Destroy Leader 52 | . 52 . Successful Hack 5 | . 5 . Disable Machine 15 | . 15 . Destroy Structure 45 | . 22 23 Lose Combat Pursuer 45 | . 45 . Influence Decreases 587 | 30 534 23 Entered New Map 2 | . 2 . Time Decay 372 | 30 342 . Lost Part 63 | . 40 23 Purge Threat 150 | . 150 . Squads Dispatched 1 | . 1 . Investigation . | . . . Extermination . | . . . Reinforcement 1 | . 1 . Assault . | . . . Garrison . | . . . Intercept . | . . . Searches Triggered . | . . . Construction Impeded . | . . . Haulers Reinforced . | . . . Active Scanning Responses . | . . . Cargo Convoy Interrupts . | . . . Stealth | -11 -10 -10 --------- Run | Yrd Mat Min Distress Signals 2 | . 2 . Communications Jammed . | . . . Distress Signals . | . . . Times Spotted 53 | . 33 20 Peak Tracking Total 20 | . 6 20 Tactical Retreats 2 | . 2 . Traps | -11 -10 -10 ------- Run | Yrd Mat Min Traps Triggered 3 | . 3 . Indirectly . | . . . Trap Hack Attempts . | . . . Triggered . | . . . Disarmed . | . . . Reprogrammed . | . . . Reused . | . . . Traps Extracted . | . . . Installed . | . . . Triggered . | . . . Machines | -11 -10 -10 ---------- Run | Yrd Mat Min Machines Disabled 1 | . 1 . Max in Single Turn 1 | . 1 . Machines Repaired . | . . . Machines Dismantled . | . . . Machines Sabotaged . | . . . Overloaded Fab Kills . | . . . Hacking | -11 -10 -10 --------- Run | Yrd Mat Min Machines Accessed 5 | . 5 . Terminals 4 | . 4 . Fabricators . | . . . Repair Stations 1 | . 1 . Recycling Units . | . . . Scanalyzers . | . . . Garrison Access . | . . . Total Hacks 14 | . 14 . Successful 9 | . 9 . Failed 5 | . 5 . Catastrophic . | . . . Database Lockouts . | . . . Manual 2 | . 2 . Terminals 11 | . 11 . Fabricators . | . . . Repair Stations 3 | . 3 . Recycling Units . | . . . Scanalyzers . | . . . Garrison Access . | . . . Terminal Hacks 7 | . 7 . Prototype ID Bank 1 | . 1 . Branch Access Points 1 | . 1 . Alert Level 1 | . 1 . Unreport Threat 1 | . 1 . Locate Traps 1 | . 1 . Zone Layout 2 | . 2 . Fabricator Hacks . | . . . Repair Station Hacks 2 | . 2 . Scan Component 1 | . 1 . Repair 1 | . 1 . Recycling Unit Hacks . | . . . Scanalyzer . | . . . Garrison Access Hacks . | . . . Unauthorized Hacks . | . . . Terminals . | . . . Fabricators . | . . . Repair Stations . | . . . Recycling Units . | . . . Scanalyzers . | . . . Garrison Access . | . . . Data Cores Recovered . | . . . Used . | . . . Hacking Detections 2 | . 2 . Full Trace Events 1 | . 1 . Feedback Events . | . . . Feedback Blocked . | . . . Robot Schematics Acquired . | . . . Robots Built . | . . . Authchips . | . . . Time . | . . . Total Robot Build Rating . | . . . Part Schematics Acquired . | . . . Parts Built . | . . . Authchips . | . . . Time . | . . . Total Part Build Rating . | . . . Parts Repaired 1 | . 1 . Time 38 | . 38 . Parts Recycled . | . . . Recycled Matter . | . . . Retrieved Matter . | . . . Retrieved Components . | . . . Parts Scanalyzed . | . . . Part Schematics Acquired . | . . . Parts Damaged . | . . . Bothacking | -11 -10 -10 ------------ Run | Yrd Mat Min Used RIF Installer . | . . . Robots Hacked . | . . . Non-combat . | . . . Combat . | . . . Robot Hacks Applied . | . . . Relay Couplers Released . | . . . Fabnet Peak Effective % . | . . . Robots Rewired . | . . . Allies Hacked . | . . . Hacks Repelled . | . . . Allies | -11 -10 -10 -------- Run | Yrd Mat Min Total Allies . | . . . Largest Group . | . . . Highest-Rated Group . | . . . Highest-Rated Ally . | . . . Total Orders . | . . . Ally Attacks . | . . . Total Damage . | . . . Kills . | . . . Allies Corrupted . | . . . Allies Melted . | . . . Intel | -11 -10 -10 ------- Run | Yrd Mat Min Active Infowar (turns) 1362 | 70 1281 11 Terrain 1344 | 52 1281 11 Seismic 18 | 18 . . Robot Analysis Total . | . . . Derelict Logs Recovered . | . . . Drone Launches . | . . . Drone Recoveries . | . . . Exploration | -11 -10 -10 ------------- Run | Yrd Mat Min Turns Passed 1535 | 193 1320 22 Spaces Moved 1068 | 107 959 2 Core 5 | 5 . . Treads 30 | 30 . . Legs . | . . . Wheels 1033 | 72 959 2 Hover . | . . . Flight . | . . . Fastest Speed 50 | 50 100 110 Average Speed 108 | 114 107 110 Slowest Speed 160 | 160 145 110 Overloaded Moves . | . . . Propulsion Burnouts . | . . . Robots Hopped . | . . . Potential Cave-ins . | . . . Cave-ins Triggered . | . . . Exploration Rate (%) 34 | 6 94 4 Regions Visited 2 Branch Regions 1 Pre-discovered Areas . | . . . Known Exits Taken 1 | . 1 . Unknown Exits Taken 1 | 1 . . Scrap Searched . | . . . Spaces Dug . | . . . Terrain Destroyed 45 | . 19 26 Melee . | . . . Projectile . | . . . AOE 45 | . 19 26 Terrain Rammed . | . . . Walls Destroyed . | . . . Machines Disabled . | . . . Actions | -11 -10 -10 --------- Run | Yrd Mat Min Total 1316 | 144 1161 11 Wait 95 | . 95 . Move 1066 | 106 958 2 Hop . | . . . Pick Up 32 | 11 21 . Fast Attach . | . . . Attach 21 | 7 14 . Detach 2 | . 2 . Swap 11 | 3 7 1 Drop 8 | 1 7 . Fire 77 | 16 53 8 Melee . | . . . Ram 4 | . 4 . Kick . | . . . Crush . | . . . Escape Stasis . | . . . Rewire . | . . . Trap . | . . . Miscellaneous . | . . . Route ------- -11/Scrapyard -10/Materials (discovered 5 exits: [*Mat x3] / *Min / [*Sub]) -10/Mines History --------- Turn | Location | Event 14 | -11/Scrapyard | Discovered new exit (range 16) 194 | -11/Scrapyard | Entered Materials 204 | -10/Materials | Identified exit to Mines 309 | -10/Materials | Build established: Mutant 408 | -10/Materials | Discovered new exit (range 16) 567 | -10/Materials | Destroyed 7 combat bots 708 | -10/Materials | Discovered new exit (range 8) 733 | -10/Materials | Core integrity fell below 50% 1222 | -10/Materials | Repaired Imp. Terrain Scanner 1241 | -10/Materials | Discovered new exit (range 15) 1387 | -10/Materials | Discovered new exit (range 16) 1514 | -10/Materials | Entered Mines 1515 | -10/Mines | Assembled infested the area 1523 | -10/Mines | Core integrity fell below 20% 1536 | -10/Mines | Destroyed by as-81695 with Assembled Maul Last Messages --------------- as-88451 destroyed. as-39163 destroyed. as-06661 destroyed. as-05663 destroyed. Wheel destroyed. as-87544 destroyed. as-08022 destroyed. as-76137 destroyed. as-46937 destroyed. Imp. Terrain Scanner destroyed. System corrupted by crushing effect (+5). as-46076 destroyed. [Achievement: Exterminator] Grenade Launcher destroyed. Destroyed Grenade Launcher. as-53716 destroyed. as-15587 destroyed. Wheel destroyed. System corrupted: Imp. Ion Engine rejected. Knocked back. Map ----- +----------------------------------------------------+ | | | | | | | | | | | | | | | | | | | | | | | | | | | | | ??????????????????#??????????????????????????????? | | ?????????????????????????????????????????????????? | | ?????????????????????????#???????????????????????? | | ?????????????????????????????????????????????????? | | ?????????????????????????????????????????????????? | | ????????????????????????####?????????????????????? | | ???????????????????????## ##????????????????????? | | ???????????????????????# #????????????????????? | | ???????????????????????# #????????????????????? | | ????????????????????????# #????????????????????? | | ???????????????????????## ###??????????????????? | | ???????????????????????# @a #??????????????????? | | ???????????????????????## * #??????????????????? | | ???????????????????#????# ##??????????????????? | | ????????????????????????# #???????????????????? | | ????????????????????????# #???????????????????? | | ???????????????????#????##% ???????????????????? | | ?????????????????????????# % ??????????????????? | | ????????????????????????? #?????????????????? | | ????????????????????????? #?????????????????? | | ????????????????????????? a #?????????????????? | | ????????????????????????% ##?????????????????? | | ???????????????????????? ??????????????????? | | ????????????????????????" ??????????????????? | | ???????????????????????? #### ?????????????????? | | ???????????????????????####??#? ?????????????????? | | ?????????????????????????????????????????????????? | | ?????????????????????????????????????????????????? | | ?????????????????????????????????????????????????? | | ?????????????????????????????????????????????????? | | ?????????????????????????????????????????????????? | | ?????????????????????????????????????????????????? | | ?????????????????????????????????????????????????? | | ?????????????????????????????????????????????????? | | ?????????????????????????????????????????????????? | | ?????????????????????????????????????????????????? | +----------------------------------------------------+ Best States ------------- Heat Dissipation 25 Energy Generation 12 Energy Capacity 265 Matter Stores 300 Matter Capacity 300 Sight Range 16 Terrain Scan Range 16 Terrain Scan Density 10 Evasion (%) 40 Recoil Reduction 2 Item Schematics ----------------- None Robot Schematics ------------------ None Fabricated ------------ Nothing Repaired ---------- Imp. Terrain Scanner | 9% | -10/Materials Alien Tech Used ----------------- None Achievements -------------- Exterminator Hunted Quick And Dirty Challenges ------------ None Game ------ Seed SlugGhostParser Manual? 0 Play Time 00:17:02 Cumulative 6.7 hours Start 2025.10.09 @ 23:36:30 End 2025.10.10 @ 00:01:56 Sessions 1 Manual Loads 0 Difficulty Rogue Special Mode None Game No. 9 Rogue 1 Adventurer 8 Explorer 0 Win Type - Total 0 Types 0/0/0/0/0/0/0/0/0/0 Lore% 3 Gallery% 12 Achievement% 17 Wizard Run 0 Options --------- Layout 1 ASCII 0 Keyboard 0 Movement Mouse Keybinds 0 Fullscreen 1 Font 24/Smallcaps Map View 50x40 Zoom Use 0% Tactical HUD 0 Map Filters NONE Filters NONE Steam 1 RUN: 9e838ead-1bea-4c04-ba89-1f7ca95056f0